bitfinex/quotes_SOLUSD_20230116
["timestamp","ask_amount","ask_price","bid_price","bid_amount"]
[1673885645630,32.26,23.269,23.25,23.42]
[1673885645984,32.24,23.278,23.251,36.32332897]
[1673885646171,32.24,23.279,23.251,19.32332897]
[1673885646358,32.24,23.277,23.251,19.32332897]
[1673885646570,32.24,23.278,23.252,17.0]
[1673885646796,52.25,23.276,23.253,20.0]
[1673885647012,32.24,23.277,23.254,17.0]
[1673885647305,32.25,23.275,23.254,36.32332897]
[1673885647517,32.25,23.276,23.256,20.0]
[1673885647731,32.25,23.274,23.256,20.0]
[1673885647941,0.0025976,23.267,23.257,19.32332897]
[1673885648164,0.0025976,23.267,23.257,36.32332897]
[1673885648360,0.0025976,23.267,23.256,20.0]
[1673885648571,0.0025976,23.267,23.257,19.32332897]
[1673885649112,0.0025976,23.267,23.258,17.0]
[1673885649324,0.0025976,23.267,23.256,20.0]
[1673885649846,0.0025976,23.267,23.231,20.0]
[1673885650057,23.58,23.26,23.231,20.0]
[1673885650283,23.58,23.26,23.232,19.32332897]
[1673885650284,17.0,23.259,23.232,19.32332897]
[1673885650464,49.27,23.259,23.233,20.0]
[1673885650675,32.27,23.259,23.233,39.32332897]
[1673885650884,32.26,23.266,23.24,23.43]
[1673885651316,0.0025976,23.267,23.241,19.32332897]
[1673885651317,17.0,23.265,23.241,19.32332897]
[1673885651528,32.26,23.265,23.242,20.0]
[1673885651724,32.26,23.266,23.242,20.0]
[1673885651936,0.0025976,23.267,23.242,20.0]
[1673885652383,32.26,23.266,23.242,20.0]
[1673885652564,17.0,23.265,23.242,20.0]
[1673885652774,0.0025976,23.267,23.242,20.0]
[1673885652999,32.26,23.265,23.242,20.0]
[1673885653216,0.0025976,23.267,23.243,19.32332897]
[1673885653409,32.26,23.266,23.242,20.0]
[1673885653838,23.58,23.26,23.24,19.72307764]
[1673885654387,32.27,23.259,23.235,20.0]
[1673885654777,0.0025976,23.267,23.233,20.0]
[1673885654778,17.0,23.258,23.233,20.0]
[1673885654989,32.27,23.258,23.234,19.72307764]
[1673885655204,17.0,23.259,23.233,20.0]
[1673885655205,32.27,23.259,23.233,20.0]
[1673885655420,32.27,23.257,23.234,19.72307764]
[1673885655632,49.27,23.258,23.234,19.72307764]
[1673885655853,0.0025976,23.267,23.233,20.0]
[1673885655854,32.27,23.256,23.233,20.0]
[1673885656052,32.27,23.257,23.234,19.72307764]
[1673885656265,32.27,23.255,23.23,20.0]
[1673885656459,37.0,23.254,23.23,20.0]
[1673885656791,52.28,23.254,23.23,20.0]
[1673885657010,52.28,23.254,23.221,20.0]
[1673885657011,23.38,23.25,23.221,20.0]
[1673885657199,17.0,23.249,23.221,20.0]
[1673885657417,20.0,23.248,23.223,39.72307764]
[1673885657742,20.0,23.248,23.221,20.0]
[1673885657743,17.0,23.247,23.221,20.0]
[1673885657956,20.0,23.246,23.223,19.72307764]
[1673885658378,32.29,23.245,23.223,19.72307764]
[1673885659196,32.28,23.249,23.224,20.0]
[1673885659414,37.0,23.248,23.224,20.0]
[1673885659617,37.0,23.248,23.225,19.72307764]
[1673885659827,32.29,23.247,23.225,19.72307764]
[1673885661426,23.5,23.24,23.211,20.0]
[1673885661739,23.58,23.23,23.21,19.72307764]
[1673885662151,49.31,23.229,23.207,20.0]
[1673885662362,23.58,23.23,23.207,20.0]
[1673885662686,23.58,23.23,23.207,39.72307764]
[1673885662889,17.0,23.229,23.207,39.72307764]
[1673885663082,23.58,23.23,23.207,39.72307764]
[1673885663294,32.31,23.229,23.207,39.72307764]
[1673885663513,23.58,23.23,23.207,39.72307764]
[1673885663729,110.466,23.238,23.21,23.58]
[1673885664153,23.58,23.25,23.211,19.72307764]
[1673885664154,32.28,23.249,23.211,19.72307764]
[1673885664361,20.0,23.242,23.212,20.0]
[1673885664776,32.29,23.241,23.212,20.0]
[1673885665000,32.29,23.242,23.213,36.72307764]
[1673885665193,112.8931,23.243,23.212,20.0]
[1673885665194,32.3,23.24,23.212,20.0]
[1673885665411,32.3,23.24,23.213,19.72307764]
[1673885665412,20.0,23.239,23.213,19.72307764]
[1673885665619,52.3,23.239,23.213,19.72307764]
[1673885665936,52.3,23.239,23.207,20.0]
[1673885666142,17.0,23.238,23.207,20.0]
[1673885666371,17.0,23.238,23.208,19.71895543]
[1673885666592,32.3,23.237,23.208,19.71895543]
[1673885666899,17.0,23.236,23.208,19.71895543]
[1673885667215,17.0,23.236,23.209,20.0]
[1673885667404,32.3,23.235,23.209,20.0]
[1673885667615,32.3,23.235,23.21,19.71895543]
[1673885667938,23.58,23.23,23.21,19.71895543]
[1673885668264,17.0,23.234,23.211,20.0]
[1673885668464,112.8931,23.243,23.22,23.58]
[1673885668873,20.0,23.256,23.221,19.71895543]
[1673885669088,140.5827,23.253,23.221,19.71895543]
[1673885669402,140.5827,23.253,23.223,20.0]
[1673885669611,140.5827,23.253,23.224,17.0]
[1673885669612,108.3027,23.253,23.224,17.0]
[1673885669832,108.3027,23.253,23.23,23.5]
[1673885670037,108.3027,23.253,23.231,37.0]
[1673885670250,108.3027,23.253,23.231,56.71895543]
[1673885670463,108.3027,23.253,23.232,19.71895543]
[1673885670863,108.3027,23.253,23.231,20.0]
[1673885671080,32.28,23.252,23.231,20.0]
[1673885671498,17.0,23.251,23.231,20.0]
[1673885671718,108.3027,23.253,23.231,20.0]
[1673885671942,108.3027,23.253,23.232,19.71895543]
[1673885672338,32.27,23.256,23.233,17.0]
[1673885672549,32.27,23.259,23.233,17.0]
[1673885672765,23.58,23.26,23.232,19.71895543]
[1673885673084,32.27,23.256,23.232,19.71895543]
[1673885673506,32.27,23.256,23.227,1.396]
[1673885673715,32.27,23.256,23.228,19.71895543]
[1673885674130,52.27,23.256,23.226,20.0]
[1673885674449,52.27,23.256,23.227,19.71895543]
[1673885674664,23.37,23.25,23.226,20.0]
[1673885674990,23.37,23.25,23.223,20.0]
[1673885675204,32.28,23.249,23.223,20.0]
[1673885675523,32.28,23.249,23.223,39.71895543]
[1673885675705,32.28,23.249,23.223,20.0]
[1673885676064,23.5,23.25,23.223,39.71895543]
[1673885676232,32.28,23.248,23.216,4.61885495]
[1673885676449,23.58,23.24,23.214,1.559]
[1673885676665,23.58,23.24,23.218,19.71895543]
[1673885676869,49.3,23.239,23.218,19.71895543]
[1673885677278,20.0,23.238,23.203,20.0]
[1673885677485,17.0,23.237,23.214,19.71895543]
[1673885677713,49.3,23.237,23.214,19.71895543]
[1673885678329,32.3,23.237,23.214,19.71895543]
[1673885678543,143.4533,23.244,23.21,20.99]
[1673885678859,21.08,23.24,23.203,20.0]
[1673885679064,20.0,23.239,23.203,20.0]
[1673885679280,73.76196354,23.239,23.203,20.0]
[1673885679511,21.46196354,23.238,23.203,20.0]
[1673885679698,118.6587,23.237,23.203,20.0]
[1673885679921,150.9587,23.237,23.203,39.71895543]
[1673885680583,118.6587,23.237,23.208,38.51131258]
[1673885680770,52.3,23.236,23.209,20.0]
[1673885680977,32.3,23.236,23.209,20.0]
[1673885681394,118.6587,23.237,23.209,20.0]
[1673885681395,118.6587,23.237,23.21,26.05133]
[1673885681607,32.29,23.243,23.21,26.05133]
[1673885681815,151.1571,23.249,23.211,85.61627134]
[1673885682021,118.8771,23.249,23.213,20.0]
[1673885682232,118.8771,23.249,23.214,21.97047]
[1673885682446,118.8771,23.249,23.215,4.97026]
[1673885682651,32.28,23.248,23.216,17.0]
[1673885682862,32.28,23.248,23.216,43.91195543]
[1673885683095,32.28,23.248,23.217,44.68878543]
[1673885683282,32.28,23.248,23.218,17.0]
[1673885683489,53.74196354,23.248,23.218,19.71895543]
[1673885683721,20.0,23.247,23.219,20.0]
[1673885684134,32.29,23.246,23.22,19.71895543]
[1673885684554,20.0,23.247,23.219,20.0]
[1673885684755,32.29,23.245,23.22,19.71895543]
[1673885684961,32.29,23.246,23.22,19.71895543]
[1673885685189,32.29,23.246,23.221,20.0]
[1673885685593,17.0,23.245,23.22,19.71895543]
[1673885685809,17.0,23.245,23.212,20.0]
[1673885685810,20.0,23.244,23.212,20.0]
[1673885686018,20.0,23.242,23.217,19.71895543]
[1673885686252,20.0,23.242,23.212,20.0]
[1673885686435,32.29,23.241,23.214,19.71895543]
[1673885686650,32.28,23.248,23.22,21.08]
[1673885686882,32.27,23.256,23.22,26.04919]
[1673885687071,32.27,23.256,23.222,20.0]
[1673885687282,32.28,23.248,23.222,20.0]
[1673885687490,32.28,23.248,23.221,19.71895543]
[1673885687700,32.28,23.248,23.223,19.71895543]
[1673885688022,32.28,23.248,23.224,20.0]
[1673885688234,32.27,23.256,23.224,20.0]
[1673885688429,32.27,23.256,23.225,19.71895543]
[1673885688871,20.0,23.247,23.226,20.0]
[1673885689077,20.0,23.247,23.225,19.71895543]
[1673885689286,32.29,23.246,23.213,20.0]
[1673885689703,17.0,23.245,23.215,19.71895543]
[1673885690028,20.0,23.244,23.216,20.0]
[1673885690236,17.0,23.243,23.216,20.0]
[1673885690450,17.0,23.243,23.217,19.71895543]
[1673885690665,32.29,23.242,23.217,19.71895543]
[1673885690851,17.0,23.241,23.217,19.71895543]
[1673885691172,32.29,23.242,23.218,20.0]
[1673885691369,111.9621,23.244,23.218,20.0]
[1673885691370,32.3,23.24,23.218,20.0]
[1673885691583,111.9621,23.244,23.218,20.0]
[1673885691584,32.29,23.241,23.219,19.71895543]
[1673885691794,111.9621,23.244,23.22,17.0]
[1673885692011,20.0,23.243,23.219,19.71895543]
[1673885692224,32.3,23.24,23.221,19.71895543]
[1673885692436,20.0,23.241,23.218,20.0]
[1673885692663,32.3,23.239,23.219,19.71895543]
[1673885692859,32.3,23.24,23.219,19.71895543]
[1673885693076,32.3,23.238,23.219,19.71895543]
[1673885693283,32.3,23.239,23.219,19.71895543]
[1673885693478,111.9621,23.244,23.219,19.71895543]
[1673885693896,111.9621,23.244,23.221,20.0]
[1673885694127,111.9621,23.244,23.222,17.0]
[1673885694326,111.9621,23.244,23.222,36.71895543]
[1673885694539,111.9621,23.244,23.223,19.71895543]
[1673885694968,111.9621,23.244,23.224,37.0]
[1673885695179,111.9621,23.244,23.224,20.0]
[1673885695388,32.29,23.243,23.225,19.71895543]
[1673885696107,32.28,23.248,23.227,20.0]
[1673885696317,134.25771846,23.27,23.227,20.0]
[1673885696318,155.28771846,23.27,23.228,17.0]
[1673885696538,0.0025976,23.267,23.23,20.9]
[1673885696761,0.0025976,23.267,23.231,141.16613]
[1673885697072,0.0025976,23.267,23.233,20.0]
[1673885697279,32.26,23.266,23.234,17.0]
[1673885697469,32.26,23.266,23.234,36.71895543]
[1673885697680,32.26,23.266,23.235,19.71895543]
[1673885697904,20.0,23.265,23.236,37.0]
[1673885698119,32.26,23.266,23.236,79.07234364]
[1673885698321,0.0025976,23.267,23.236,79.07234364]
[1673885698322,32.26,23.264,23.237,61.79129907]
[1673885698534,0.0025976,23.267,23.238,17.0]
[1673885698748,32.26,23.266,23.238,17.0]
[1673885698954,32.2625976,23.267,23.239,39.71895543]
[1673885699171,0.0025976,23.267,23.24,17.0]
[1673885699381,0.0025976,23.267,23.24,36.71895543]
[1673885699586,32.26,23.266,23.241,19.71895543]
[1673885699790,32.26,23.266,23.242,17.0]
[1673885700002,32.26,23.266,23.243,20.0]
[1673885700220,32.26,23.266,23.243,39.71895543]
[1673885700430,32.26,23.266,23.244,19.71895543]
[1673885700640,0.0025976,23.267,23.244,19.71895543]
[1673885700853,0.0025976,23.267,23.246,20.0]
[1673885701047,0.0025976,23.267,23.25,21.08]
[1673885701477,0.0025976,23.267,23.251,2.992]
[1673885701679,23.66219359,23.301,23.26,21.08]
[1673885701893,569.92373531,23.328,23.279,6.40191128]
[1673885702100,20.0,23.327,23.29,21.08]
[1673885702335,569.92373531,23.328,23.3,25.35580809]
[1673885702530,215.29685578,23.35,23.301,4.95191]
[1673885702531,32.16,23.336,23.301,4.95191]
[1673885702850,136.11481846,23.348,23.301,4.95191]
[1673885702851,32.15,23.344,23.32,21.08]
[1673885703048,32.15,23.347,23.321,17.0]
[1673885703256,32.13,23.36,23.33,21.08]
[1673885703478,32.15,23.346,23.331,17.0]
[1673885703695,32.13,23.359,23.331,60.28053856]
[1673885703891,32.15,23.345,23.331,100.37476864]
[1673885704100,17.152975,23.346,23.321,20.0]
[1673885704319,17.152975,23.346,23.305,20.0]
[1673885704526,53.61196354,23.345,23.315,19.71895543]
[1673885704729,53.61196354,23.345,23.305,20.0]
[1673885704948,21.08,23.34,23.305,20.0]
[1673885705373,32.16,23.339,23.302,20.0]
[1673885705587,53.62196354,23.339,23.29,21.08]
[1673885705797,20.0,23.338,23.291,20.0]
[1673885706005,20.0,23.337,23.294,19.71895543]
[1673885706221,21.08,23.33,23.291,4.95404]
[1673885706544,58.46196354,23.329,23.288,19.71895543]
[1673885706732,90.63196354,23.329,23.291,20.0]
[1673885706943,52.17,23.329,23.3,21.08]
[1673885707158,17.0,23.328,23.292,19.71895543]
[1673885707480,20.0,23.327,23.292,19.71895543]
[1673885707682,20.0,23.326,23.293,20.0]
[1673885707892,20.0,23.326,23.291,20.0]
[1673885708100,21.08,23.32,23.284,19.71895543]
[1673885708307,20.0,23.319,23.286,19.71895543]
[1673885708541,32.19,23.319,23.286,19.71895543]
[1673885708749,32.19,23.319,23.287,20.0]
[1673885708964,32.18,23.325,23.29,21.05]
[1673885709166,32.19,23.318,23.29,21.05]
[1673885709503,32.18,23.324,23.291,19.71895543]
[1673885709704,32.19,23.317,23.289,39.81863856]
[1673885710007,21.08,23.32,23.282,19.71895543]
[1673885710217,32.19,23.316,23.282,19.71895543]
[1673885710414,52.19,23.319,23.279,20.0]
[1673885710617,32.19,23.315,23.28,39.43791086]
[1673885710828,20.0,23.313,23.281,20.0]
[1673885711039,17.0,23.312,23.271,23.57]
[1673885711255,21.07,23.31,23.272,4.95808]
[1673885711460,21.07,23.31,23.274,19.71895543]
[1673885711686,52.2,23.309,23.274,19.71895543]
[1673885711888,52.2,23.309,23.275,24.95744]
[1673885712111,52.2,23.309,23.276,4.95723]
[1673885712301,52.2,23.309,23.276,24.67618543]
[1673885712512,52.2,23.309,23.277,19.71895543]
[1673885712840,52.2,23.309,23.27,20.0]
[1673885712841,20.0,23.308,23.27,20.0]
[1673885713367,20.0,23.306,23.271,19.71895543]
[1673885713606,17.0,23.305,23.271,19.71895543]
[1673885713780,20.0,23.304,23.272,20.0]
[1673885713985,17.0,23.303,23.272,20.0]
[1673885714198,49.21,23.303,23.273,19.70938175]
[1673885714840,49.21,23.303,23.267,20.0]
[1673885714841,20.0,23.299,23.267,20.0]
[1673885715033,37.0,23.298,23.25,21.08]
[1673885715372,69.21,23.298,23.265,19.70938175]
[1673885715681,20.0,23.297,23.266,20.0]
[1673885715892,20.0,23.296,23.266,20.0]
[1673885716083,52.22,23.296,23.267,19.70938175]
[1673885716515,52.22,23.296,23.254,9.587]
[1673885716713,52.22,23.296,23.251,4.96256]
[1673885716714,21.08,23.29,23.252,20.0]
[1673885716938,20.0,23.289,23.256,19.70938175]
[1673885717259,69.23,23.289,23.253,19.70938175]
[1673885717662,20.0,23.288,23.254,20.0]
[1673885717872,37.0,23.287,23.253,19.70938175]
[1673885718084,69.23,23.287,23.241,7.608]
[1673885718295,69.23,23.287,23.247,24.67279175]
[1673885718518,69.23,23.287,23.248,4.9632]
[1673885718732,21.03,23.28,23.249,20.0]
[1673885719045,20.0,23.286,23.249,39.70938175]
[1673885719363,32.24,23.279,23.25,19.70938175]
[1673885719572,52.23,23.287,23.251,20.0]
[1673885719885,32.24,23.278,23.252,24.67173175]
[1673885720090,32.23,23.286,23.252,24.67173175]
[1673885720289,32.23,23.286,23.254,20.0]
[1673885720511,32.23,23.287,23.254,20.0]
[1673885720710,32.23,23.285,23.255,39.4187635]
[1673885720925,52.23,23.286,23.255,19.70938175]
[1673885721135,32.23,23.284,23.256,38.95397581]
[1673885721345,37.0,23.283,23.256,38.95397581]
[1673885721562,69.24,23.283,23.251,20.0]
[1673885721769,40.0,23.282,23.251,20.0]
[1673885721982,20.0,23.28,23.251,20.0]
[1673885722177,20.0,23.279,23.251,20.0]
[1673885722395,17.0,23.278,23.251,20.0]
[1673885722604,20.0,23.277,23.251,20.0]
[1673885722814,32.24,23.277,23.251,20.0]
[1673885723245,32.24,23.277,23.25,19.70938175]
[1673885723246,20.0,23.276,23.247,37.21863856]
[1673885723447,20.96,23.27,23.23,21.05]
[1673885723657,20.0,23.268,23.232,20.0]
[1673885723866,20.0,23.267,23.232,20.0]
[1673885724072,20.0,23.266,23.233,19.70938175]
[1673885724292,17.0,23.265,23.233,19.70938175]
[1673885724502,49.26,23.265,23.232,20.0]
[1673885725038,49.26,23.265,23.233,19.70938175]
[1673885725238,21.08,23.26,23.226,20.0]
[1673885725451,17.0,23.259,23.226,20.0]
[1673885725764,40.0,23.258,23.226,20.0]
[1673885725982,17.0,23.257,23.225,20.0]
[1673885726181,20.0,23.256,23.225,20.0]
[1673885726395,49.27,23.257,23.225,20.0]
[1673885726396,32.27,23.257,23.226,19.70938175]
[1673885726608,32.27,23.257,23.228,20.0]
[1673885726807,32.26,23.265,23.229,4.96726]
[1673885727009,32.27,23.256,23.229,19.70938175]
[1673885727243,21.03,23.26,23.229,19.70938175]
[1673885727436,32.27,23.255,23.229,19.70938175]
[1673885727648,20.0,23.279,23.262,40.66954321]
[1673885728381,20.0,23.276,23.262,40.66954321]
[1673885728609,21.08,23.27,23.262,40.66954321]
[1673885728803,21.08,23.27,23.262,7.18954321]
[1673885729029,21.08,23.27,23.231,20.0]
[1673885729030,179.76,23.269,23.231,20.0]
[1673885729218,21.08,23.26,23.231,20.0]
[1673885729553,20.0,23.258,23.231,20.0]
[1673885729867,17.0,23.257,23.225,39.70938175]
[1673885730176,21.08,23.25,23.225,20.0]
[1673885730368,17.0,23.249,23.225,20.0]
[1673885730580,32.28,23.249,23.225,20.0]
[1673885731028,32.27,23.255,23.225,39.70938175]
[1673885731542,20.0,23.254,23.225,39.70938175]
[1673885731979,32.27,23.255,23.225,39.70938175]
[1673885732703,32.27,23.255,23.226,19.70938175]
[1673885733028,20.0,23.256,23.227,20.0]
[1673885733229,32.28,23.254,23.227,20.0]
[1673885733438,32.27,23.255,23.227,20.0]
[1673885733647,32.28,23.253,23.227,20.0]
[1673885733971,32.28,23.254,23.227,39.70938175]
[1673885734167,17.0,23.253,23.227,20.0]
[1673885734364,32.28,23.253,23.227,20.0]
[1673885734573,17.0,23.252,23.227,20.0]
[1673885734795,49.28,23.254,23.227,39.70938175]
[1673885734796,17.0,23.254,23.227,39.70938175]
[1673885735019,222.7859,23.257,23.227,39.70938175]
[1673885735207,20.0,23.256,23.227,39.70938175]
[1673885735409,20.0,23.255,23.227,20.0]
[1673885735624,52.27,23.255,23.227,19.0]
[1673885736263,17.0,23.254,23.227,19.0]
[1673885736480,20.0,23.253,23.227,19.0]
[1673885736693,17.0,23.252,23.227,19.0]
[1673885736905,20.0,23.251,23.227,19.0]
[1673885737103,17.0,23.25,23.227,19.0]
[1673885737314,20.0,23.249,23.213,5.36434632]
[1673885737652,20.0,23.247,23.213,5.36434632]
[1673885737836,20.0,23.246,23.213,5.36434632]
[1673885738042,52.29,23.246,23.219,19.70938175]
[1673885738364,20.0,23.246,23.22,20.0]
[1673885738903,17.0,23.245,23.22,20.0]
[1673885739104,49.29,23.245,23.22,20.0]
[1673885739725,32.29,23.245,23.22,20.0]
[1673885740364,20.0,23.243,23.22,20.0]
[1673885740589,20.0,23.243,23.213,5.36434632]
[1673885740799,49.29,23.242,23.213,5.36434632]
[1673885740993,49.29,23.242,23.212,20.0]
[1673885741328,21.08,23.24,23.207,19.70938175]
[1673885741512,187.5,23.239,23.207,19.70938175]
[1673885741726,89.3,23.239,23.204,20.0]
[1673885741935,89.3,23.239,23.204,39.70938175]
[1673885742362,219.8,23.239,23.204,39.70938175]
[1673885742572,89.3,23.239,23.204,39.70938175]
[1673885744054,52.3,23.239,23.204,20.0]
[1673885744585,20.0,23.238,23.204,20.0]
[1673885744898,20.0,23.237,23.205,36.70938175]
[1673885745124,20.0,23.236,23.206,20.0]
[1673885745305,17.0,23.235,23.208,20.0]
[1673885745516,49.3,23.235,23.208,20.0]
[1673885745726,20.0,23.234,23.208,20.0]
[1673885745951,17.0,23.233,23.208,20.0]
[1673885746277,20.0,23.232,23.208,20.0]
[1673885746457,17.0,23.231,23.207,19.70938175]
[1673885746671,49.31,23.231,23.206,20.0]
[1673885746878,32.31,23.231,23.206,20.0]
[1673885747101,32.31,23.231,23.207,19.70938175]
[1673885747314,108.8215,23.27,23.207,19.70938175]
[1673885747315,32.3,23.233,23.207,19.70938175]
[1673885747512,32.3,23.24,23.207,19.70938175]
[1673885747715,110.6774,23.241,23.208,37.0]
[1673885748271,61.08,23.24,23.21,20.0]
[1673885748474,21.08,23.23,23.207,19.70938175]
[1673885748657,20.0,23.229,23.198,20.0]
[1673885748868,17.0,23.228,23.198,20.0]
[1673885749098,20.0,23.227,23.198,39.70938175]
[1673885749297,32.31,23.227,23.204,20.0]
[1673885749511,117.8522,23.231,23.204,20.0]
[1673885749834,117.8522,23.231,23.205,19.70938175]
[1673885750462,20.0,23.23,23.206,20.0]
[1673885750676,32.31,23.23,23.206,20.0]
[1673885750867,32.31,23.23,23.207,17.0]
[1673885751089,117.8522,23.231,23.207,36.70938175]
[1673885751413,117.8522,23.231,23.208,39.70938175]
[1673885751620,117.8522,23.231,23.209,17.0]
[1673885751839,117.8522,23.231,23.209,36.70938175]
[1673885752038,117.8522,23.231,23.21,19.70938175]
[1673885752771,117.8522,23.231,23.208,20.0]
[1673885752979,20.0,23.23,23.208,20.0]
[1673885753303,52.31,23.23,23.206,20.0]
[1673885753516,17.0,23.229,23.206,20.0]
[1673885753928,32.31,23.228,23.206,20.0]
[1673885754767,32.31,23.23,23.207,17.0]
[1673885755303,32.31,23.23,23.209,20.0]
[1673885755507,117.8522,23.231,23.21,17.0]
[1673885755717,117.8522,23.231,23.21,19.70938175]
[1673885755936,117.8522,23.231,23.211,20.0]
[1673885756556,17.0,23.23,23.207,19.70938175]
[1673885756754,20.0,23.229,23.206,20.0]
[1673885756966,32.31,23.23,23.206,20.0]
[1673885757181,32.31,23.23,23.208,20.0]
[1673885757387,117.8522,23.231,23.206,20.0]
[1673885757598,32.31,23.229,23.206,20.0]
[1673885757927,32.31,23.23,23.207,19.70938175]
[1673885758124,32.3,23.238,23.207,19.70938175]
[1673885758342,32.3,23.239,23.208,20.0]
[1673885758561,32.3,23.239,23.208,37.0]
[1673885758783,32.3,23.239,23.21,20.0]
[1673885758784,20.0,23.239,23.21,20.0]
[1673885758978,32.3,23.238,23.21,20.0]
[1673885759186,32.3,23.238,23.21,39.70938175]
[1673885759390,32.3,23.238,23.211,17.0]
[1673885759595,32.3,23.239,23.211,17.0]
[1673885759821,32.3,23.237,23.212,20.0]
[1673885760030,32.29,23.243,23.213,17.0]
[1673885760240,32.3,23.24,23.214,20.0]
[1673885760442,32.29,23.242,23.215,17.0]
[1673885760653,32.29,23.243,23.215,36.70938175]
[1673885760981,32.29,23.243,23.216,19.70938175]
[1673885761195,32.29,23.243,23.217,20.0]
[1673885761393,32.29,23.243,23.218,17.0]
[1673885761720,32.29,23.243,23.219,20.0]
[1673885762355,32.29,23.243,23.219,39.70938175]
[1673885762534,20.0,23.256,23.244,49.83921394]
[1673885762748,108.8215,23.257,23.244,49.83921394]
[1673885763180,32.26,23.267,23.245,17.0]
[1673885763500,32.26,23.268,23.246,20.0]
[1673885763699,32.26,23.266,23.247,17.0]
[1673885763906,32.26,23.267,23.247,17.0]
[1673885764119,52.25,23.274,23.247,36.70938175]
[1673885764333,32.25,23.275,23.248,19.70938175]
[1673885764660,32.25,23.275,23.249,17.0]
[1673885765064,32.24,23.282,23.25,19.70617674]
[1673885765276,32.25,23.274,23.251,17.0]
[1673885765489,52.24,23.281,23.251,20.0]
[1673885765798,20.0,23.281,23.252,17.0]
[1673885766003,32.24,23.28,23.252,17.0]
[1673885766228,32.24,23.28,23.253,20.0]
[1673885766229,20.0,23.279,23.253,20.0]
[1673885766434,32.24,23.282,23.254,17.0]
[1673885766640,32.24,23.279,23.254,56.41235348]
[1673885766857,32.24,23.281,23.255,20.0]
[1673885767077,52.24,23.282,23.256,17.0]
[1673885767267,32.24,23.28,23.256,17.0]
[1673885767477,32.24,23.281,23.256,17.0]
[1673885768109,32.24,23.281,23.251,20.0]
[1673885768321,20.88,23.28,23.251,20.0]
[1673885768525,20.0,23.279,23.243,19.70617674]
[1673885768762,73.70196354,23.279,23.243,19.70617674]
[1673885768948,21.46196354,23.278,23.244,69.83921394]
[1673885769283,20.0,23.277,23.244,69.83921394]
[1673885769492,52.24,23.277,23.244,69.83921394]
[1673885769708,52.24,23.277,23.248,39.70617674]
[1673885770331,52.24,23.277,23.249,17.0]
[1673885770757,20.0,23.277,23.25,39.41235348]
[1673885770971,32.25,23.276,23.251,17.0]
[1673885771182,20.0,23.275,23.252,20.0]
[1673885771381,32.24,23.277,23.252,20.0]